[Event "South Island Championships 2023"]
[Site "Oamaru, New Zealand"]
[Date "2023.09.28"]
[Round "3.3"]
[White "Liu, William Rui"]
[Black "Mayrhuber, Nikola"]
[Result "1-0"]
[TimeControl "90 + 30"]
[WhiteFideId "4313593"]
[BlackFideId "1637819"]
[WhiteElo "2094"]
[BlackElo "2059"]

1. e4 {[%clk 01:30:57]} {[%emt 00:00:03]} c5 {[%clk 01:29:42]} {[%emt
00:01:19]} 2. Nf3 {[%clk 01:31:18]} {[%emt 00:00:09]} d6 {[%clk 01:30:06]}
{[%emt 00:00:06]} 3. d4 {[%clk 01:31:42]} {[%emt 00:00:06]} cxd4 {[%clk
01:30:31]} {[%emt 00:00:05]} 4. Nxd4 {[%clk 01:32:06]} {[%emt 00:00:06]} Nf6
{[%clk 01:30:56]} {[%emt 00:00:05]} 5. Nc3 {[%clk 01:32:31]} {[%emt 00:00:05]}
a6 {[%clk 01:31:22]} {[%emt 00:00:05]} 6. h3 {[%clk 01:32:52]} {[%emt
00:00:08]} e5 {[%clk 01:31:04]} {[%emt 00:00:47]} 7. Nf3 {[%clk 01:33:14]}
{[%emt 00:00:08]} Be7 {[%clk 01:27:19]} {[%emt 00:04:16]} 8. g4 {[%clk
01:33:29]} {[%emt 00:00:15]} h6 {[%clk 01:27:33]} {[%emt 00:00:17]} 9. Rg1
{[%clk 01:33:35]} {[%emt 00:00:23]} Qa5 {[%clk 01:21:13]} {[%emt 00:06:50]} 10.
Bd2 {[%clk 01:26:14]} {[%emt 00:07:51]} Qb6 {[%clk 01:21:05]} {[%emt 00:00:38]}
11. g5 {[%clk 01:12:51]} {[%emt 00:13:53]} hxg5 {[%clk 01:15:55]} {[%emt
00:05:41]} 12. Nxg5 {[%clk 01:13:12]} {[%emt 00:00:08]} Qc6 {[%clk 01:10:32]}
{[%emt 00:05:53]} 13. Qf3 {[%clk 01:05:50]} {[%emt 00:07:51]} Nbd7 {[%clk
01:09:01]} {[%emt 00:02:02]} 14. Nd5 {[%clk 01:03:27]} {[%emt 00:02:52]} Bd8
{[%clk 01:03:44]} {[%emt 00:05:48]} 15. Nb4 {[%clk 00:58:57]} {[%emt 00:05:00]}
Qc7 {[%clk 00:58:14]} {[%emt 00:06:00]} 16. Nd5 {[%clk 00:58:07]} {[%emt
00:01:19]} Qc6 {[%clk 00:52:01]} {[%emt 00:06:44]} 17. Nb4 {[%clk 00:54:00]}
{[%emt 00:04:36]} Qc7 {[%clk 00:46:43]} {[%emt 00:05:49]} 18. Nd5 {[%clk
00:53:18]} {[%emt 00:01:12]} Qc5 {[%clk 00:41:12]} {[%emt 00:06:01]} 19. O-O-O
{[%clk 00:27:49]} {[%emt 00:25:59]} b5 {[%clk 00:38:31]} {[%emt 00:03:11]} 20.
Bb4 {[%clk 00:27:08]} {[%emt 00:01:10]} Qc6 {[%clk 00:34:18]} {[%emt 00:04:44]}
21. Nxf6+ {[%clk 00:24:27]} {[%emt 00:03:11]} Nxf6 {[%clk 00:32:58]} {[%emt
00:01:49]} 22. Bxd6 {[%clk 00:21:54]} {[%emt 00:03:03]} Bc7 {[%clk 00:22:15]}
{[%emt 00:11:14]} 23. Qb3 {[%clk 00:19:48]} {[%emt 00:02:36]} Be6 {[%clk
00:14:58]} {[%emt 00:07:47]} 24. Nxe6 {[%clk 00:19:35]} {[%emt 00:00:42]} Bxd6
{[%clk 00:15:19]} {[%emt 00:00:10]} 25. Nxg7+ {[%clk 00:19:56]} {[%emt
00:00:09]} Kf8 {[%clk 00:15:09]} {[%emt 00:00:39]} 26. Nf5 {[%clk 00:20:00]}
{[%emt 00:00:25]} Bc5 {[%clk 00:15:11]} {[%emt 00:00:30]} 27. Bg2 {[%clk
00:13:27]} {[%emt 00:07:02]} Rc8 {[%clk 00:14:20]} {[%emt 00:01:22]} 28. Kb1
{[%clk 00:11:52]} {[%emt 00:02:04]} Nh5 {[%clk 00:13:16]} {[%emt 00:01:34]} 29.
Qc3 {[%clk 00:09:55]} {[%emt 00:02:27]} Qe6 {[%clk 00:12:42]} {[%emt 00:01:05]}
30. Rd5 {[%clk 00:08:05]} {[%emt 00:02:20]} Bxf2 {[%clk 00:10:28]} {[%emt
00:02:43]} 31. Qb4+ {[%clk 00:07:10]} {[%emt 00:01:24]} Kg8 {[%clk 00:10:51]}
{[%emt 00:00:08]} 32. Rf1 {[%clk 00:07:08]} {[%emt 00:00:31]} Bg3 {[%clk
00:02:34]} {[%emt 00:08:49]} 33. Ne7+ {[%clk 00:07:09]} {[%emt 00:00:29]} Kh7
{[%clk 00:03:01]} {[%emt 00:00:03]} 34. Nxc8 {[%clk 00:07:25]} {[%emt
00:00:14]} Rxc8 {[%clk 00:03:29]} {[%emt 00:00:02]} 35. Rd6 {[%clk 00:07:02]}
{[%emt 00:00:53]} Qe8 {[%clk 00:02:52]} {[%emt 00:01:07]} 36. Qb3 {[%clk
00:06:34]} {[%emt 00:00:58]} Bf4 {[%clk 00:02:27]} {[%emt 00:00:55]} 37. Rfd1
{[%clk 00:06:20]} {[%emt 00:00:43]} Qg8 {[%clk 00:01:54]} {[%emt 00:01:04]} 38.
Bf3 {[%clk 00:05:55]} {[%emt 00:00:55]} Ng3 {[%clk 00:01:38]} {[%emt 00:00:46]}
39. Qd3 {[%clk 00:05:45]} {[%emt 00:00:39]} Qg5 {[%clk 00:01:26]} {[%emt
00:00:43]} 40. Rd7 {[%clk 00:05:37]} {[%emt 00:00:38]} Kg7 {[%clk 00:01:08]}
{[%emt 00:00:48]} 41. Rxf7+ {[%clk 00:05:41]} {[%emt 00:00:26]} Kxf7 {[%clk
00:01:32]} {[%emt 00:00:06]} 42. Qd7+ {[%clk 00:06:07]} {[%emt 00:00:03]} Qe7
{[%clk 00:00:54]} {[%emt 00:01:08]} 43. Qxc8 {[%clk 00:06:31]} {[%emt
00:00:06]} 1-0

[Event "South Island Championships 2023"]
[Site "Oamaru, New Zealand"]
[Date "2023.09.28"]
[Round "3.2"]
[White "Stark, John"]
[Black "Paulsen, Jens"]
[Result "1-0"]
[TimeControl "90 + 30"]
[WhiteFideId "4300963"]
[BlackFideId "4320476"]
[WhiteElo "2204"]
[BlackElo "2080"]

1. c4 {[%clk 01:30:47]} {[%emt 00:00:12]} e5 {[%clk 01:30:56]} {[%emt
00:00:04]} 2. Nc3 {[%clk 01:31:10]} {[%emt 00:00:07]} Nc6 {[%clk 01:31:24]}
{[%emt 00:00:02]} 3. g3 {[%clk 01:31:34]} {[%emt 00:00:05]} Nf6 {[%clk
01:31:49]} {[%emt 00:00:06]} 4. Bg2 {[%clk 01:32:00]} {[%emt 00:00:04]} Bb4
{[%clk 01:32:02]} {[%emt 00:00:17]} 5. Nd5 {[%clk 01:31:00]} {[%emt 00:01:29]}
a5 {[%clk 01:31:59]} {[%emt 00:00:34]} 6. e3 {[%clk 01:31:15]} {[%emt
00:00:15]} O-O {[%clk 01:32:22]} {[%emt 00:00:07]} 7. Ne2 {[%clk 01:31:22]}
{[%emt 00:00:22]} Re8 {[%clk 01:32:34]} {[%emt 00:00:18]} 8. O-O {[%clk
01:31:42]} {[%emt 00:00:11]} Nxd5 {[%clk 01:25:43]} {[%emt 00:07:21]} 9. cxd5
{[%clk 01:31:49]} {[%emt 00:00:23]} Ne7 {[%clk 01:23:44]} {[%emt 00:02:29]} 10.
a3 {[%clk 01:32:06]} {[%emt 00:00:14]} Bc5 {[%clk 01:20:51]} {[%emt 00:03:22]}
11. d4 {[%clk 01:25:50]} {[%emt 00:06:45]} exd4 {[%clk 01:21:07]} {[%emt
00:00:15]} 12. exd4 {[%clk 01:24:03]} {[%emt 00:02:17]} Bd6 {[%clk 01:13:30]}
{[%emt 00:08:07]} 13. Qc2 {[%clk 01:21:05]} {[%emt 00:03:28]} c6 {[%clk
01:08:26]} {[%emt 00:05:35]} 14. Nc3 {[%clk 01:17:18]} {[%emt 00:04:16]} Ra6
{[%clk 01:05:17]} {[%emt 00:03:39]} 15. Re1 {[%clk 01:05:31]} {[%emt 00:12:17]}
Nxd5 {[%clk 00:58:15]} {[%emt 00:07:32]} 16. Rxe8+ {[%clk 01:05:34]} {[%emt
00:00:27]} Qxe8 {[%clk 00:58:44]} 17. Nxd5 {[%clk 01:05:04]} {[%emt 00:01:00]}
cxd5 {[%clk 00:54:49]} {[%emt 00:04:26]} 18. Bxd5 {[%clk 01:05:16]} {[%emt
00:00:17]} Bb8 {[%clk 00:51:48]} {[%emt 00:03:31]} 19. Bd2 {[%clk 01:03:15]}
{[%emt 00:02:30]} d6 {[%clk 00:49:01]} {[%emt 00:03:19]} 20. Rc1 {[%clk
01:00:14]} {[%emt 00:03:30]} Bh3 {[%clk 00:45:55]} {[%emt 00:03:36]} 21. Re1
{[%clk 00:57:55]} {[%emt 00:02:48]} Qd7 {[%clk 00:45:08]} {[%emt 00:01:17]} 22.
Bxb7 {[%clk 00:57:30]} {[%emt 00:00:55]} Rb6 {[%clk 00:43:48]} {[%emt
00:01:51]} 23. Bc8 {[%clk 00:56:35]} {[%emt 00:01:25]} 1-0

[Event "South Island Championships 2023"]
[Site "Oamaru, New Zealand"]
[Date "2023.09.28"]
[Round "3.4"]
[White "Lee, Dylan E S"]
[Black "Johnson, Quentin J F"]
[Result "0-1"]
[TimeControl "90 + 30"]
[WhiteFideId "4310098"]
[BlackFideId "4301480"]
[WhiteElo "1192"]
[BlackElo "2089"]

1. b3 {[%clk 01:30:58]} {[%emt 00:00:01]} d5 {[%clk 01:24:44]} {[%emt
00:06:16]} 2. Bb2 {[%clk 01:31:18]} {[%emt 00:00:10]} Bg4 {[%clk 01:24:41]}
{[%emt 00:00:34]} 3. g3 {[%clk 01:31:31]} {[%emt 00:00:16]} e6 {[%clk
01:25:07]} {[%emt 00:00:04]} 4. Bg2 {[%clk 01:31:47]} {[%emt 00:00:14]} Nf6
{[%clk 01:25:32]} {[%emt 00:00:05]} 5. Nf3 {[%clk 01:31:33]} {[%emt 00:00:45]}
Bd6 {[%clk 01:25:39]} {[%emt 00:00:23]} 6. O-O {[%clk 01:31:24]} {[%emt
00:00:38]} O-O {[%clk 01:26:04]} {[%emt 00:00:05]} 7. d3 {[%clk 01:30:32]}
{[%emt 00:01:22]} c5 {[%clk 01:26:10]} {[%emt 00:00:25]} 8. Nbd2 {[%clk
01:28:03]} {[%emt 00:02:59]} Nc6 {[%clk 01:26:28]} {[%emt 00:00:11]} 9. h3
{[%clk 01:28:24]} {[%emt 00:00:09]} Bh5 {[%clk 01:26:00]} {[%emt 00:00:57]} 10.
e4 {[%clk 01:22:32]} {[%emt 00:06:23]} d4 {[%clk 01:25:48]} {[%emt 00:00:42]}
11. a3 {[%clk 01:21:47]} {[%emt 00:01:16]} e5 {[%clk 01:25:25]} {[%emt
00:00:53]} 12. Qe1 {[%clk 01:20:33]} {[%emt 00:01:43]} b5 {[%clk 01:23:46]}
{[%emt 00:02:09]} 13. Nh4 {[%clk 01:19:46]} {[%emt 00:01:17]} Nd7 {[%clk
01:24:05]} {[%emt 00:00:11]} 14. f4 {[%clk 01:19:40]} {[%emt 00:00:36]} f6
{[%clk 01:24:25]} {[%emt 00:00:10]} 15. g4 {[%clk 01:19:25]} {[%emt 00:00:45]}
Bf7 {[%clk 01:24:36]} {[%emt 00:00:18]} 16. Nf5 {[%clk 01:18:54]} {[%emt
00:01:02]} Nb6 {[%clk 01:24:51]} {[%emt 00:00:15]} 17. Nxd6 {[%clk 01:18:16]}
{[%emt 00:01:08]} Qxd6 {[%clk 01:25:17]} {[%emt 00:00:05]} 18. f5 {[%clk
01:18:39]} {[%emt 00:00:06]} c4 {[%clk 01:25:25]} {[%emt 00:00:23]} 19. Bc1
{[%clk 01:18:24]} {[%emt 00:00:44]} cxd3 {[%clk 01:23:16]} {[%emt 00:02:39]} 20.
cxd3 {[%clk 01:18:41]} {[%emt 00:00:13]} Rfc8 {[%clk 01:22:16]} {[%emt
00:01:30]} 21. Rb1 {[%clk 01:15:21]} {[%emt 00:03:51]} a5 {[%clk 01:22:28]}
{[%emt 00:00:18]} 22. Qg3 {[%clk 01:15:11]} {[%emt 00:00:38]} a4 {[%clk
01:21:22]} {[%emt 00:01:37]} 23. b4 {[%clk 01:15:35]} {[%emt 00:00:07]} Nc4
{[%clk 01:16:40]} {[%emt 00:05:11]} 24. Nf3 {[%clk 01:02:08]} {[%emt 00:13:57]}
Ne3 {[%clk 01:16:52]} {[%emt 00:00:18]} 25. Re1 {[%clk 00:59:54]} {[%emt
00:02:43]} Nc2 {[%clk 01:11:57]} {[%emt 00:05:26]} 26. Re2 {[%clk 00:57:23]}
{[%emt 00:03:01]} N6xb4 {[%clk 01:11:50]} {[%emt 00:00:37]} 27. axb4 {[%clk
00:57:07]} {[%emt 00:00:46]} a3 {[%clk 01:12:12]} {[%emt 00:00:08]} 28. Bxa3
{[%clk 00:55:14]} {[%emt 00:02:23]} Rxa3 {[%clk 01:11:53]} {[%emt 00:00:49]} 29.
Ne1 {[%clk 00:54:35]} {[%emt 00:01:09]} Nxe1 {[%clk 01:05:45]} {[%emt
00:06:39]} 30. Rexe1 {[%clk 00:54:44]} {[%emt 00:00:21]} Rcc3 {[%clk 01:05:41]}
{[%emt 00:00:33]} 31. Bf1 {[%clk 00:52:09]} {[%emt 00:03:05]} Bc4 {[%clk
01:05:04]} {[%emt 00:01:07]} 32. Red1 {[%clk 00:50:18]} {[%emt 00:02:21]} Bb3
{[%clk 01:04:43]} {[%emt 00:00:52]} 33. Rd2 {[%clk 00:49:02]} {[%emt 00:01:45]}
Qxb4 {[%clk 01:04:26]} {[%emt 00:00:47]} 34. Rdb2 {[%clk 00:48:57]} {[%emt
00:00:35]} Qe7 {[%clk 01:04:33]} {[%emt 00:00:23]} 35. h4 {[%clk 00:48:08]}
{[%emt 00:01:19]} h6 {[%clk 01:04:45]} {[%emt 00:00:18]} 36. g5 {[%clk
00:48:15]} {[%emt 00:00:22]} fxg5 {[%clk 01:05:01]} {[%emt 00:00:15]} 37. hxg5
{[%clk 00:48:41]} {[%emt 00:00:04]} Qxg5 {[%clk 01:05:23]} {[%emt 00:00:08]} 38.
Qxg5 {[%clk 00:48:52]} {[%emt 00:00:19]} hxg5 {[%clk 01:05:49]} {[%emt
00:00:05]} 39. Rg2 {[%clk 00:49:09]} {[%emt 00:00:12]} Ra6 {[%clk 00:59:18]}
{[%emt 00:07:01]} 40. Rxg5 {[%clk 00:47:21]} {[%emt 00:02:17]} Kf8 {[%clk
00:59:28]} {[%emt 00:00:21]} 41. Rg2 {[%clk 00:45:08]} {[%emt 00:02:43]} Rb6
{[%clk 00:58:22]} {[%emt 00:01:36]} 42. Ra1 {[%clk 00:42:13]} {[%emt 00:03:25]}
Ba4 {[%clk 00:58:43]} {[%emt 00:00:10]} 43. Rb2 {[%clk 00:42:36]} {[%emt
00:00:07]} Rc2 {[%clk 00:56:24]} {[%emt 00:02:48]} 44. Rb4 {[%clk 00:41:40]}
{[%emt 00:01:26]} Rh6 {[%clk 00:56:41]} {[%emt 00:00:12]} 45. Raxa4 {[%clk
00:40:22]} {[%emt 00:01:50]} bxa4 {[%clk 00:57:03]} {[%emt 00:00:08]} 46. Rxa4
{[%clk 00:40:46]} {[%emt 00:00:06]} Ke7 {[%clk 00:55:02]} {[%emt 00:02:30]} 47.
Ra7+ {[%clk 00:41:05]} {[%emt 00:00:11]} Kf6 {[%clk 00:55:10]} {[%emt
00:00:23]} 48. Ra6+ {[%clk 00:40:33]} {[%emt 00:01:02]} Kg5 {[%clk 00:55:16]}
{[%emt 00:00:24]} 49. Ra5 {[%clk 00:40:58]} {[%emt 00:00:06]} Kf4 {[%clk
00:55:32]} {[%emt 00:00:14]} 50. Ra7 {[%clk 00:40:51]} {[%emt 00:00:37]} g5
{[%clk 00:53:18]} {[%emt 00:02:43]} 51. fxg6 {[%clk 00:41:08]} {[%emt
00:00:13]} Rxg6+ {[%clk 00:53:40]} {[%emt 00:00:08]} 52. Kh1 {[%clk 00:41:12]}
{[%emt 00:00:26]} Rc1 {[%clk 00:51:17]} {[%emt 00:02:54]} 53. Rf7+ {[%clk
00:41:33]} {[%emt 00:00:09]} Ke3 {[%clk 00:51:42]} {[%emt 00:00:05]} 54. Kh2
{[%clk 00:41:25]} {[%emt 00:00:37]} Rxf1 {[%clk 00:52:02]} {[%emt 00:00:11]} 55.
Rxf1 {[%clk 00:41:41]} {[%emt 00:00:14]} Kxd3 {[%clk 00:52:26]} {[%emt
00:00:06]} 56. Rg1 {[%clk 00:40:55]} {[%emt 00:01:16]} Rxg1 {[%clk 00:52:46]}
{[%emt 00:00:10]} 57. Kxg1 {[%clk 00:41:21]} {[%emt 00:00:04]} Ke2 {[%clk
00:53:07]} {[%emt 00:00:09]} 58. Kg2 {[%clk 00:41:44]} {[%emt 00:00:08]} d3
{[%clk 00:53:32]} {[%emt 00:00:04]} 59. Kg3 {[%clk 00:42:09]} {[%emt 00:00:05]}
d2 {[%clk 00:53:51]} {[%emt 00:00:12]} 60. Kg4 {[%clk 00:42:36]} {[%emt
00:00:02]} d1=Q {[%clk 00:54:11]} {[%emt 00:00:10]} 61. Kf5 {[%clk 00:43:01]}
{[%emt 00:00:04]} Qd4 {[%clk 00:54:26]} {[%emt 00:00:16]} 62. Ke6 {[%clk
00:43:19]} {[%emt 00:00:12]} Kf3 {[%clk 00:54:39]} {[%emt 00:00:17]} 63. Kf7
{[%clk 00:43:29]} {[%emt 00:00:20]} Qd6 {[%clk 00:54:58]} {[%emt 00:00:11]} 64.
Ke8 {[%clk 00:43:46]} {[%emt 00:00:13]} Qc7 {[%clk 00:55:23]} {[%emt 00:00:05]}
65. Kf8 {[%clk 00:44:08]} {[%emt 00:00:08]} Kg4 {[%clk 00:55:47]} {[%emt
00:00:06]} 66. Kg8 {[%clk 00:44:21]} {[%emt 00:00:17]} Kg5 {[%clk 00:56:13]}
{[%emt 00:00:04]} 67. Kh8 {[%clk 00:44:37]} {[%emt 00:00:14]} Kg6 {[%clk
00:56:36]} {[%emt 00:00:07]} 68. Kg8 {[%clk 00:45:02]} {[%emt 00:00:06]} Qc8#
{[%clk 00:57:01]} {[%emt 00:00:04]} 0-1

[Event "South Island Championships 2023"]
[Site "Oamaru, New Zealand"]
[Date "2023.09.28"]
[Round "3.11"]
[White "Kerr, Atlas"]
[Black "Wilson, Dion A"]
[Result "1-0"]
[TimeControl "90 + 30"]
[WhiteFideId "4319486"]
[BlackFideId "4321413"]
[WhiteElo "1853"]
[BlackElo "1611"]

1. b4 {[%clk 01:30:55]} {[%emt 00:00:04]} d5 {[%clk 01:28:46]} {[%emt
00:02:14]} 2. Bb2 {[%clk 01:31:01]} {[%emt 00:00:25]} Bf5 {[%clk 01:28:04]}
{[%emt 00:01:10]} 3. Nf3 {[%clk 01:28:52]} {[%emt 00:02:40]} e6 {[%clk
01:26:07]} {[%emt 00:02:27]} 4. e3 {[%clk 01:27:31]} {[%emt 00:01:52]} h6
{[%clk 01:24:01]} {[%emt 00:02:36]} 5. b5 {[%clk 01:25:46]} {[%emt 00:02:15]}
Nf6 {[%clk 01:22:34]} {[%emt 00:01:56]} 6. d4 {[%clk 01:24:20]} {[%emt
00:01:57]} c5 {[%clk 01:17:53]} {[%emt 00:05:11]} 7. c4 {[%clk 01:22:39]}
{[%emt 00:02:11]} Nbd7 {[%clk 01:12:48]} {[%emt 00:05:35]} 8. Nbd2 {[%clk
01:20:48]} {[%emt 00:02:20]} Be7 {[%clk 01:10:45]} {[%emt 00:02:33]} 9. Be2
{[%clk 01:19:46]} {[%emt 00:01:33]} O-O {[%clk 01:09:09]} {[%emt 00:02:05]} 10.
O-O {[%clk 01:19:52]} {[%emt 00:00:24]} Qc7 {[%clk 01:07:43]} {[%emt 00:01:56]}
11. Rc1 {[%clk 01:12:06]} {[%emt 00:08:16]} b6 {[%clk 01:04:38]} {[%emt
00:03:35]} 12. Ne5 {[%clk 01:01:26]} {[%emt 00:11:10]} Nxe5 {[%clk 00:59:03]}
{[%emt 00:06:04]} 13. dxe5 {[%clk 01:01:51]} {[%emt 00:00:06]} Nd7 {[%clk
00:55:14]} {[%emt 00:04:18]} 14. f4 {[%clk 01:01:30]} {[%emt 00:00:51]} f6
{[%clk 00:53:19]} {[%emt 00:02:25]} 15. cxd5 {[%clk 00:52:25]} {[%emt
00:09:35]} fxe5 {[%clk 00:49:46]} {[%emt 00:04:02]} 16. e4 {[%clk 00:52:25]}
{[%emt 00:00:30]} exd5 {[%clk 00:43:40]} {[%emt 00:06:36]} 17. exf5 {[%clk
00:52:23]} {[%emt 00:00:33]} e4 {[%clk 00:42:46]} {[%emt 00:01:23]} 18. Nb3
{[%clk 00:46:22]} {[%emt 00:06:32]} Qd6 {[%clk 00:40:29]} {[%emt 00:02:47]} 19.
g4 {[%clk 00:38:18]} {[%emt 00:08:34]} Bf6 {[%clk 00:36:47]} {[%emt 00:04:11]}
20. Bxf6 {[%clk 00:35:22]} {[%emt 00:03:26]} Rxf6 {[%clk 00:35:10]} {[%emt
00:02:06]} 21. Qd2 {[%clk 00:31:09]} {[%emt 00:04:44]} d4 {[%clk 00:28:29]}
{[%emt 00:07:10]} 22. Bc4+ {[%clk 00:29:57]} {[%emt 00:01:43]} Kh8 {[%clk
00:27:53]} {[%emt 00:01:06]} 23. Qg2 {[%clk 00:27:32]} {[%emt 00:02:54]} Re8
{[%clk 00:25:59]} {[%emt 00:02:24]} 24. Be6 {[%emt 00:10:43]} Rfxe6 {[%clk
00:17:05]} 25. fxe6 {[%clk 00:26:58]} {[%emt 00:00:16]} Rxe6 {[%clk 00:17:10]}
{[%emt 00:00:24]} 26. f5 {[%clk 00:23:53]} {[%emt 00:03:36]} Re7 {[%clk
00:16:04]} {[%emt 00:01:36]} 27. g5 {[%clk 00:19:51]} {[%emt 00:04:32]} d3
{[%clk 00:13:51]} {[%emt 00:02:44]} 28. Rc4 {[%clk 00:14:27]} {[%emt 00:05:54]}
e3 {[%clk 00:11:49]} {[%emt 00:02:31]} 29. Re4 {[%clk 00:13:00]} {[%emt
00:01:57]} c4 {[%clk 00:07:03]} {[%emt 00:05:16]} 30. Rxc4 {[%clk 00:11:00]}
{[%emt 00:02:31]} hxg5 {[%clk 00:04:46]} {[%emt 00:02:47]} 31. Rd4 {[%clk
00:09:39]} {[%emt 00:01:51]} Qxd4 {[%clk 00:02:05]} {[%emt 00:03:10]} 32. Nxd4
{[%clk 00:09:57]} {[%emt 00:00:13]} Nc5 {[%clk 00:01:39]} {[%emt 00:00:56]} 33.
Qxg5 {[%clk 00:08:26]} {[%emt 00:02:00]} Re4 {[%clk 00:01:10]} {[%emt
00:00:59]} 34. f6 {[%emt 00:02:14]} 1-0